Cogmind - Beta 15 @@@ ROGUE MODE // 2025.05.30 @ 10:22:42 Player: Nebulae Result: Destroyed by A3-VO8(R) with Subdweller Beam Cannon Performance ------------- Evolutions (0) 0 Regions Visited (2) 400 Robots Destroyed (16) 80 Value Destroyed (391) 391 Prototype IDs (0) 0 Alien Tech Used (0) 0 Bonus (0) 0 TOTAL SCORE: 871 Bonus ------- None Cogmind --------- Core Integrity 0/250 Matter 291/300 Energy 233/250 System Corruption 0% Temperature Cool (9) Movement Treading (240) Ox1 Location -10/Subcaves Parts ------- > --- POWER (1) -------- Ion Engine > --- PROPULSION (2) --- Light Treads Light Treads > --- UTILITY (2) ------ High-capacity Storage Unit Improved Terrain Scanner > --- WEAPON (2) ------- EM Pulse Gun Assault Rifle > --- INVENTORY (20) --- Ion Engine Light Treads Light Treads Aluminum Leg Aluminum Leg Large Storage Unit Large Battery (200) Structural Scanner Light Armor Plating Scrap Shield EM Pulse Gun Light Assault Rifle Datajack Hammer Peak State ------------ > --- POWER ------------ Ion Engine > --- PROPULSION ------- Light Treads Light Treads > --- UTILITY ---------- High-capacity Storage Unit Improved Terrain Scanner > --- WEAPON ----------- Particle Gun Assault Rifle > --- INVENTORY -------- Ion Engine Light Treads Light Treads Light Treads Aluminum Leg Aluminum Leg Large Storage Unit Large Battery Structural Scanner Light Armor Plating EM Pulse Gun EM Pulse Gun Light Assault Rifle Datajack Hammer [Rating: 11] Favorites ----------- Power Ion Engine Engine Ion Engine Propulsion Light Treads Treads Light Treads Utility Structural Scanner Device Structural Scanner Storage High-capacity Storage Unit Weapon EM Pulse Gun Energy Gun EM Pulse Gun Ballistic Gun Assault Rifle Special Melee Weapon Datajack Build | -11 -10 -10 ------- Run | Yrd Mat Sub Slots Evolved . | . . . Power . | . . . Propulsion . | . . . Utility . | . . . Weapon . | . . . Parts Attached 18 | 7 9 2 Power 1 | 1 . . Engine 1 | 1 . . Core . | . . . Reactor . | . . . Propulsion 5 | 2 2 1 Treads 5 | 2 2 1 Leg . | . . . Wheel . | . . . Hover . | . . . Flight . | . . . Utility 6 | 2 4 . Device 3 | 1 2 . Storage 3 | 1 2 . Processor . | . . . Hackware . | . . . Protection . | . . . Artifact . | . . . Weapon 6 | 2 3 1 Energy Gun 3 | . 2 1 Energy Cannon . | . . . Ballistic Gun 2 | 2 . . Ballistic Cannon . | . . . Launcher . | . . . Special Weapon . | . . . Impact Weapon . | . . . Slashing Weapon . | . . . Piercing Weapon . | . . . Special Melee Weapon 1 | . 1 . Unidentified Prototypes . | . . . Parts Lost 4 | . 1 3 Power . | . . . Propulsion 1 | . . 1 Utility 1 | . 1 . Weapon 2 | . . 2 Highest Loss Streak 2 | . 1 2 To Critical Strikes . | . . . Average Backups 13 | 3 13 14 Power . | . . 1 Propulsion 4 | 1 4 4 Utility 3 | . 3 4 Weapon 4 | . 4 3 Tool/Special . | . . . Unused Backups 14 | . 4 10 Power 2 | . 1 1 Propulsion 4 | . . 4 Utility 5 | . 2 3 Weapon 3 | . 1 2 Tool/Special . | . . . Average Slot Usage (%) 99 | . 100 99 Engine 14 | . 14 14 Treads 27 | . 28 27 Device 14 | . 14 14 Storage 14 | . 14 14 Energy Gun 22 | . 24 15 Ballistic Gun 5 | . 3 13 Peak Build Rating 11 | 7 9 11 Average Rating 8 | 5 7 9 On Entrance 5 | . 7 8 Naked Turns . | . . . Heaviest Build 51 | 14 50 51 Greatest Support 40 | 40 40 40 Greatest Overweight (x) 2 | 2 1 2 Average Overweight (x) . | . . 1 Largest Inventory Capacity 20 | 8 20 20 Average Capacity 17 | 7 17 20 Most Carried 17 | 5 16 17 Average Carried 13 | 3 13 15 Final Capacity 20 | 8 20 20 Final Carried 16 | 5 16 15 Class Distribution -------------------- 100% | Mutant Dominant Class ---------------- Mutant | -10/Materials Mutant | -10/Subcaves Resources | -11 -10 -10 ----------- Run | Yrd Mat Sub Matter Collected 488 | 278 137 73 Remotely . | . . . Salvage Created 549 | 23 407 119 Parts 36 | 3 26 7 Haulers Intercepted 1 | . 1 . Recyclers Shooed . | . . . Parts Field Recycled . | . . . Retrieved Matter . | . . . Parts Self-Destructed 10 | . . 10 Prevented . | . . . Kills | -11 -10 -10 ------- Run | Yrd Mat Sub Combat Hostiles Destroyed 13 | . 10 3 Guns 10 | . 8 2 AOE 3 | . 2 1 Classes Destroyed 6 | 1 4 1 Tunneler 1 | 1 . . Hauler 1 | . 1 . Watcher 1 | . 1 . Swarmer 5 | . 5 . Grunt 5 | . 5 . Subdweller 3 | . . 3 Best Kill Streak 4 | 1 4 1 Combat Bots Only 4 | . 4 1 Max Kills in Single Turn 2 | 1 2 1 Gunslinging . | . . . Exploded 2 | . 2 1 Melee . | . . . Uniques/NPCs Destroyed . | . . . Combat | -11 -10 -10 -------- Run | Yrd Mat Sub Hostile Shots Fired 56 | . 35 21 Missed 12 | . 8 4 Hits 44 | . 27 17 Projectile 44 | . 27 17 Damage Taken 844 | . 350 494 Core 251 | . 128 123 Absorbed by Shields . | . . . Core Remaining (%) 100 | 100 . . Volleys Fired 47 | 2 30 15 Largest 2 | 2 2 2 Hottest 85 | 40 80 85 Shots Fired 93 | 4 60 29 Gun 93 | 4 60 29 Cannon . | . . . Launcher . | . . . Special . | . . . Kinetic 32 | 4 14 14 Thermal 9 | . . 9 Explosive . | . . . Electromagnetic 52 | . 46 6 Robot Hit Streak 9 | 3 7 9 Robot Miss Streak 4 | . 4 2 Penetration Max . | . . . Secondary Targets 3 | . 3 . Max Gunslinging Chain 1 | . 1 . Shots Hit Robots 58 | 3 33 22 Core Hits 26 | 1 18 7 Critical Kills . | . . . Critical Parts Destroyed . | . . . Critical Strikes 2 | . 1 1 Corrupt 2 | . 1 1 Melee Attacks 3 | . 3 . Impact . | . . . Slashing . | . . . Piercing . | . . . Sneak Attacks . | . . . Combat Hostiles . | . . . Follow-up Attacks . | . . . Damage Inflicted 870 | 31 480 359 Guns 754 | 31 426 297 Cannons . | . . . Explosions 116 | . 54 62 Melee . | . . . Ramming . | . . . Kinetic 224 | 31 56 137 Thermal 243 | . 54 189 Explosive . | . . . Electromagnetic 403 | . 370 33 Impact . | . . . Slashing . | . . . Piercing . | . . . Highest Corruption . | . . . Average Corruption . | . . . Corruption Purged . | . . . Corruption Blocked . | . . . Overload Shots . | . . . Overflow Damage 31 | . 4 27 Projectiles . | . . . Explosions 31 | . 4 27 Melee . | . . . Knockbacks . | . . . Impact . | . . . Kinetic . | . . . Secondary . | . . . Self-Inflicted Damage 96 | . 38 58 Shots 2 | . 1 1 Rammed . | . . . Targets Rammed . | . . . Kicked . | . . . Crushed . | . . . Highest Temperature 171 | . 171 . Average Temperature 46 | . 46 . Received Heat Transfer 159 | . 69 90 Siege Activations . | . . . Martial Activations . | . . . Shielding Activations . | . . . Robots Disrupted . | . . . Combat Hostiles . | . . . Robots Corrupted . | . . . Combat Hostiles . | . . . Parts Fried 1 | . 1 . Impact Corruptions . | . . . Robots Melted . | . . . Combat Hostiles . | . . . Parts Melted 1 | . . 1 Heat Transferred 346 | . . 346 Parts Sabotaged . | . . . Parts Stolen . | . . . Parts Stripped . | . . . Power Chain Reactions 2 | . 1 1 Alert | -11 -10 -10 ------- Run | Yrd Mat Sub Maximum Alert Level . | . . . Low Security (%) 100 | 100 100 . Level 1 . | . . . Level 2 . | . . . Level 3 . | . . . Level 4 . | . . . Level 5 . | . . . High Security . | . . . Max Security . | . . . Peak Influence 92 | 5 92 . Initial . | . . . Average 15 | . 16 . Influence Increases 354 | 5 349 . Destroy 0b10 Robot/C 200 | . 200 . Destroy 0b10 Robot/NC 15 | 5 10 . Destroy Leader 54 | . 54 . Successful Hack 52 | . 52 . Destroy Structure 3 | . 3 . Lose Combat Pursuer 30 | . 30 . Influence Decreases 354 | 5 349 . Time Decay 344 | 5 339 . Lost Part 10 | . 10 . Squads Dispatched 1 | . 1 . Investigation . | . . . Extermination . | . . . Reinforcement 1 | . 1 . Assault . | . . . Garrison . | . . . Intercept . | . . . Searches Triggered . | . . . Construction Impeded . | . . . Haulers Reinforced . | . . . Active Scanning Responses . | . . . Cargo Convoy Interrupts . | . . . Stealth | -11 -10 -10 --------- Run | Yrd Mat Sub Distress Signals 1 | . 1 . Communications Jammed . | . . . Distress Signals . | . . . Times Spotted 26 | . 21 5 Peak Tracking Total 4 | . 4 2 Tactical Retreats 2 | . 2 . Traps | -11 -10 -10 ------- Run | Yrd Mat Sub Traps Triggered 1 | . 1 . Indirectly . | . . . Trap Hack Attempts . | . . . Triggered . | . . . Disarmed . | . . . Reprogrammed . | . . . Reused . | . . . Traps Extracted . | . . . Installed . | . . . Triggered . | . . . Machines | -11 -10 -10 ---------- Run | Yrd Mat Sub Machines Disabled . | . . . Max in Single Turn . | . . . Machines Repaired . | . . . Machines Dismantled . | . . . Machines Sabotaged . | . . . Overloaded Fab Kills . | . . . Hacking | -11 -10 -10 --------- Run | Yrd Mat Sub Machines Accessed 8 | . 8 . Terminals 6 | . 6 . Fabricators . | . . . Repair Stations 1 | . 1 . Recycling Units 1 | . 1 . Scanalyzers . | . . . Garrison Access . | . . . Total Hacks 21 | . 21 . Successful 17 | . 17 . Failed 4 | . 4 . Catastrophic . | . . . Database Lockouts . | . . . Manual 14 | . 14 . Terminals 18 | . 18 . Fabricators . | . . . Repair Stations 2 | . 2 . Recycling Units 1 | . 1 . Scanalyzers . | . . . Garrison Access . | . . . Terminal Hacks 9 | . 9 . Robot Analysis 1 | . 1 . Level Access Points 1 | . 1 . Branch Access Points 1 | . 1 . Emergency Access Points 1 | . 1 . Locate Traps 2 | . 2 . Transport Status 1 | . 1 . Zone Layout 2 | . 2 . Fabricator Hacks . | . . . Repair Station Hacks 1 | . 1 . Scan Component 1 | . 1 . Recycling Unit Hacks . | . . . Scanalyzer . | . . . Garrison Access Hacks . | . . . Unauthorized Hacks 7 | . 7 . Terminals 6 | . 6 . Track 3 | . 3 . Botnet 3 | . 3 . Fabricators . | . . . Repair Stations . | . . . Recycling Units 1 | . 1 . Reject 1 | . 1 . Scanalyzers . | . . . Garrison Access . | . . . Data Cores Recovered . | . . . Used . | . . . Hacking Detections 5 | . 5 . Full Trace Events . | . . . Feedback Events . | . . . Feedback Blocked . | . . . Robot Schematics Acquired . | . . . Robots Built . | . . . Authchips . | . . . Time . | . . . Total Robot Build Rating . | . . . Part Schematics Acquired . | . . . Parts Built . | . . . Authchips . | . . . Time . | . . . Total Part Build Rating . | . . . Parts Repaired . | . . . Time . | . . . Parts Recycled . | . . . Recycled Matter . | . . . Retrieved Matter . | . . . Retrieved Components . | . . . Parts Scanalyzed . | . . . Part Schematics Acquired . | . . . Parts Damaged . | . . . Bothacking | -11 -10 -10 ------------ Run | Yrd Mat Sub Used RIF Installer . | . . . Robots Hacked 1 | . 1 . Non-combat 1 | . 1 . Combat . | . . . Robot Hacks Applied 1 | . 1 . parse_system 1 | . 1 . Relay Couplers Released . | . . . Fabnet Peak Effective % . | . . . Robots Rewired . | . . . Allies Hacked . | . . . Hacks Repelled . | . . . Allies | -11 -10 -10 -------- Run | Yrd Mat Sub Total Allies . | . . . Largest Group . | . . . Highest-Rated Group . | . . . Highest-Rated Ally . | . . . Total Orders . | . . . Ally Attacks . | . . . Total Damage . | . . . Kills . | . . . Allies Corrupted . | . . . Allies Melted . | . . . Intel | -11 -10 -10 ------- Run | Yrd Mat Sub Active Infowar (turns) 2324 | 36 1746 542 Terrain 359 | . 53 306 Structural 1877 | . 1641 236 Seismic 88 | 36 52 . Robot Analysis Total 1 | . 1 . Derelict Logs Recovered . | . . . Drone Launches . | . . . Drone Recoveries . | . . . Exploration | -11 -10 -10 ------------- Run | Yrd Mat Sub Turns Passed 2399 | 108 1749 542 Spaces Moved 1035 | 55 777 203 Core 5 | 5 . . Treads 1030 | 50 777 203 Legs . | . . . Wheels . | . . . Hover . | . . . Flight . | . . . Fastest Speed 50 | 50 160 240 Average Speed 208 | 153 203 241 Slowest Speed 320 | 160 240 320 Overloaded Moves . | . . . Propulsion Burnouts . | . . . Robots Hopped . | . . . Potential Cave-ins . | . . . Cave-ins Triggered . | . . . Exploration Rate (%) 40 | 4 98 18 Regions Visited 2 Branch Regions 1 Pre-discovered Areas . | . . . Known Exits Taken . | . . . Unknown Exits Taken 2 | 1 1 . Scrap Searched . | . . . Spaces Dug . | . . . Terrain Destroyed 6 | . 2 4 Melee . | . . . Projectile . | . . . AOE 6 | . 2 4 Terrain Rammed . | . . . Walls Destroyed . | . . . Machines Disabled . | . . . Actions | -11 -10 -10 --------- Run | Yrd Mat Sub Total 1184 | 72 884 228 Wait 51 | 4 43 4 Move 1033 | 54 776 203 Hop . | . . . Pick Up 21 | 5 15 1 Fast Attach 7 | 7 . . Attach 4 | . 1 3 Detach . | . . . Swap 11 | . 9 2 Drop 7 | . 7 . Fire 47 | 2 30 15 Melee 3 | . 3 . Ram . | . . . Kick . | . . . Crush . | . . . Escape Stasis . | . . . Rewire . | . . . Trap . | . . . Miscellaneous . | . . . Route ------- -11/Scrapyard -10/Materials (discovered 5 exits: *Mat x3 / *Min / [*Sub]) -10/Subcaves History --------- Turn | Location | Event 15 | -11/Scrapyard | Discovered new exit (range 15) 109 | -11/Scrapyard | Entered Materials 314 | -10/Materials | Build established: Mutant 342 | -10/Materials | Discovered new exit (range 9) 367 | -10/Materials | Identified exit to Mines 367 | -10/Materials | Identified exit to Materials 612 | -10/Materials | Discovered new exit (range 11) 866 | -10/Materials | Core integrity fell below 50% 1858 | -10/Materials | Entered Subcaves 1859 | -10/Subcaves | Approached by a straggling Scientist 2229 | -10/Subcaves | Core integrity fell below 20% 2400 | -10/Subcaves | Destroyed by A3-VO8(R) with Subdweller Beam Cannon Last Messages --------------- 02128_ Acquired 31 matter. 02155_ Acquired Scrap Shield. RI-5LI(c): "I think it's somewhere northeast of here" 02171_ C8-SUW(u) builds Twisted Machinery. 02202_ RI-5LI(c) destroyed. 02207_ Lgt. Treads destroyed. 02211_ Subatomizers dissect the Lgt. Ion Engine. 02213_ Particle Gun destroyed. 02217_ T1-ZA2(R) destroyed. 02222_ Subatomizers dissect the Lgt. Ion Engine. 02223_ Acquired 22 matter. 02228_ Tech Extrapolator violently self-destructs. 02231_ Acquired 4 matter. 02233_ Subatomizers dissect the Lgt. Ion Engine. 02248_ Subatomizers dissect the Sub. Optics. 02250_ Acquired 6 matter. 02261_ Subatomizers dissect the Sub. Optics. 02294_ L2-776(z): "She is not going to be happy we haven't found any suitable candidates yet." 02396_ R9-HUL(R) misfires. Map ----- +----------------------------------------------------+ | ##### "## ###?#?????????????????????????????? | | * ## " #& ""##???????????????????????????????? | | = """" #?#?#???????????????????????????? | | ## ## """" #???????????????????????????????? | | ########"### ###??????????????????????????????? | | ########## #????????????????????????????????? | | # ##?#???? ##????##??????????????????????????? | | ##?????## ##?##???#??????????????????????????? | | ###?????? ##??????????????????????????????????? | | ##?#?#??# #???????????????????????????????????? | | ####?????# ##?##?#???#?????????????????????????? | | ###?##??### ## ###??#??????#???????????????????? | | ####?????# # ???????????????????????????????? | | #???###### ??#?????????????????????????????? | | #??## ?? ???????????????##?????????????? | | #??# #????????????#???? #?????????????? | | ##??# ## #?#?#????????????" ??????????????? | | #### ## #????#??????????#" ???????????????? | | ## ## #????#???????????"" ????????????????? | | #???????????????" ?????????????????? | | # #??#?????#####??" #?????????????????? | | ## ##???????# #? #?????????????????? | | ?#### ######### #?? #?????????????????? | | ????## ### #? #???#??????????????? | | ?????## ## "#???#?#?????????????? | | ??????## ## ### @R "#???????????????????? | | ???????# ### #?# R #???????????????????? | | ??????? ?### # # #??????????????????? | | ??? ?? ??# ## ????????????????? | | ? ? #?#### #### #??????????????? | | ??# ###????###?# ##?????#????????? | | ###?# ##????#?????#### #### ##???????????????? | | ????####???????????????####???###????????????????? | | ?????????????????????????????????????????????????? | | ????????????#????????????????????????????????????? | | ???#?????????????????????????????????????????????? | | ?????????????????????????????????????????????????? | | ?????????????????????????????????????????????????? | | ?????????????????????????????????????????????????? | | ?????????????????????????????????????????????????? | | ????????????????????#????????????????????????????? | | ?????????????????????????????????????????????????? | | ?????????????????????????????????????????????????? | | ?????????????????????????????????????????????????? | | ?????????????????????????????????????????????????? | | ?????????????????????????????????????????????????? | | ?????????????????????????????????????????????????? | | | | | | | +----------------------------------------------------+ Best States ------------- Heat Dissipation 25 Energy Generation 10 Energy Capacity 250 Matter Stores 300 Matter Capacity 300 Sight Range 16 Terrain Scan Range 16 Terrain Scan Density 10 Evasion (%) 40 Recoil Reduction 2 Item Schematics ----------------- None Robot Schematics ------------------ None Fabricated ------------ Nothing Repaired ---------- Nothing Alien Tech Used ----------------- None Achievements -------------- None Challenges ------------ None Game ------ Seed WeaponsMicroStripper Manual? 0 Play Time 00:20:46 Cumulative 26.9 hours Start 2025.05.30 @ 10:01:58 End 2025.05.30 @ 10:22:42 Sessions 1 Manual Loads 0 Difficulty Rogue Special Mode None Game No. 21 Rogue 21 Adventurer 0 Explorer 0 Win Type - Total 0 Types 0/0/0/0/0/0/0/0/0/0 Lore% 22 Gallery% 17 Achievement% 20 Wizard Run 0 Options --------- Layout 0 ASCII 0 Keyboard 0 Movement Arrows Keybinds 0 Fullscreen 1 Font 18/SmallcapsGlow Map View 76x50 Zoom Use 0% Tactical HUD 1 Map Filters NONE Filters NONE Steam X RUN: 0427f334-2ae4-423b-8307-9ba414e2d1d7